fUST/lending_fUST_20240613
["ID","MTS","AMOUNT","RATE_DAILY","PERIOD"]
[329343612,1718261445983,-2091.05,0.00016986,2]
[329343613,1718261446010,-500.0,0.00016986,2]
[329343614,1718261446049,-500.0,0.00016986,2]
[329343615,1718261446112,-1726.51,0.00016986,2]
[329343616,1718261446123,-500.0,0.00016986,2]
[329343617,1718261446169,-500.0,0.00016986,2]
[329343618,1718261446216,-3191.16,0.00016986,2]
[329343619,1718261446229,-880.22,0.00016986,2]
[329343620,1718261446264,-234.26,0.00016986,2]
[329343621,1718261446292,-500.0,0.00016999,2]
[329343622,1718261446303,-500.0,0.00016999,2]
[329343623,1718261446315,-500.0,0.00016999,2]
[329343624,1718261446328,-62536.20592418,0.00017,2]
[329343625,1718261446350,-540.54583004,0.00017159,2]
[329343626,1718261446376,-500.0,0.00017259,2]
[329343627,1718261446388,-500.0,0.0001726,2]
[329343628,1718261446400,-500.0,0.0001726,2]
[329343629,1718261446411,-500.0,0.0001726,2]
[329343630,1718261446425,-500.0,0.0001726,2]
[329343631,1718261446460,-853.5,0.0001726,2]
[329343632,1718261446478,-500.0,0.0001726,2]
[329343633,1718261446496,-500.0,0.0001726,2]
[329343634,1718261446511,-500.0,0.0001726,2]
[329343635,1718261446525,-847.94,0.0001726,2]
[329343636,1718261446538,-500.0,0.0001726,2]
[329343637,1718261446567,-310.41,0.0001726,2]
[329343638,1718261446578,-515.54,0.0001726,2]
[329343639,1718261446609,-601.49,0.0001726,2]
[329343640,1718261446622,-714.72,0.0001726,2]
[329343641,1718261446634,-500.0,0.0001726,2]
[329343642,1718261446645,-1078.02,0.0001726,2]
[329343644,1718261446659,-500.0,0.0001726,2]
[329343646,1718261446673,-614.12,0.0001726,2]
[329343647,1718261446686,-500.0,0.0001726,2]
[329343648,1718261446698,-500.0,0.0001726,2]
[329343649,1718261446709,-955.43,0.0001726,2]
[329343650,1718261446719,-2091.05,0.0001726,2]
[329343651,1718261446729,-500.0,0.0001726,2]
[329343652,1718261446744,-500.0,0.0001726,2]
[329343653,1718261446761,-1726.51,0.0001726,2]
[329343654,1718261446783,-500.0,0.0001726,2]
[329343655,1718261446796,-500.0,0.0001726,2]
[329343656,1718261446820,-3191.16,0.0001726,2]
[329343657,1718261446835,-880.22,0.0001726,2]
[329343658,1718261446848,-153.0,0.0001753,2]
[329343659,1718261446863,-153.0,0.0001753,2]
[329343660,1718261446874,-500.0,0.00017533,2]
[329343661,1718261446889,-500.0,0.00017534,2]
[329343662,1718261446904,-500.0,0.00017534,2]
[329343663,1718261446916,-500.0,0.00017534,2]
[329343664,1718261446926,-853.5,0.00017534,2]
[329343665,1718261446938,-500.0,0.00017534,2]
[329343666,1718261446949,-500.0,0.00017534,2]
[329343667,1718261446964,-847.94,0.00017534,2]
[329343668,1718261446975,-500.0,0.00017534,2]
[329343669,1718261446987,-515.54,0.00017534,2]
[329343670,1718261446999,-601.49,0.00017534,2]
[329343671,1718261447015,-714.72,0.00017534,2]
[329343672,1718261447029,-500.0,0.00017534,2]
[329343673,1718261447042,-1078.02,0.00017534,2]
[329343674,1718261447055,-500.0,0.00017534,2]
[329343675,1718261447070,-614.12,0.00017534,2]
[329343676,1718261447096,-500.0,0.00017534,2]
[329343677,1718261447112,-500.0,0.00017534,2]
[329343678,1718261447139,-955.43,0.00017534,2]
[329343679,1718261447150,-2091.05,0.00017534,2]
[329343680,1718261447163,-500.0,0.00017534,2]
[329343681,1718261447175,-500.0,0.00017534,2]
[329343682,1718261447191,-1726.51,0.00017534,2]
[329343683,1718261447204,-500.0,0.00017534,2]
[329343684,1718261447222,-500.0,0.00017534,2]
[329343685,1718261447238,-3191.16,0.00017534,2]
[329343686,1718261447254,-880.22,0.00017534,2]
[329343687,1718261447269,-500.0,0.00017707,2]
[329343688,1718261447317,-500.0,0.00017707,2]
[329343689,1718261447336,-500.0,0.00017707,2]
[329343690,1718261447346,-500.0,0.00017707,2]
[329343691,1718261447357,-395.8,0.00017712,2]
[329343692,1718261447371,-500.0,0.00017807,2]
[329343693,1718261447385,-500.0,0.00017808,2]
[329343694,1718261447395,-423.87765953,0.00017808,2]
[329343695,1718261447411,-500.0,0.00017808,2]
[329343696,1718261447428,-853.5,0.00017808,2]
[329343697,1718261447441,-260.35,0.00017808,2]
[329343698,1718261447455,-500.0,0.00017808,2]
[329343699,1718261447467,-847.94,0.00017808,2]
[329343700,1718261447479,-500.0,0.00017808,2]
[329343701,1718261447490,-515.54,0.00017808,2]
[329343702,1718261447500,-601.49,0.00017808,2]
[329343703,1718261447511,-714.72,0.00017808,2]
[329343704,1718261447521,-574.13669665,0.00017808,2]
[329343705,1718261447533,-1078.02,0.00017808,2]
[329343706,1718261447545,-500.0,0.00017808,2]
[329343707,1718261447557,-614.12,0.00017808,2]
[329343708,1718261447569,-500.0,0.00017808,2]
[329343709,1718261447581,-500.0,0.00017808,2]
[329343710,1718261447614,-955.43,0.00017808,2]
[329343711,1718261447627,-2091.05,0.00017808,2]
[329343712,1718261447639,-500.0,0.00017808,2]
[329343713,1718261447654,-500.0,0.00017808,2]
[329343714,1718261447668,-1726.51,0.00017808,2]
[329343715,1718261447679,-500.0,0.00017808,2]
[329343716,1718261447689,-500.0,0.00017808,2]
[329343717,1718261447699,-3191.16,0.00017808,2]
[329343718,1718261447711,-880.22,0.00017808,2]
[329343719,1718261447722,-540.54583002,0.00017844,2]
[329343720,1718261447733,-86190.4541435,0.000179,2]
[329343721,1718261447848,-2697.5458565,0.000179,2]
[329343722,1718261447859,-395.8,0.00017916,2]
[329343723,1718261447881,-500.0,0.00017999,2]
[329343724,1718261447892,-1355.76865896,0.00018,2]
[329343725,1718261447905,-359.9574317,0.00018,2]
[329343726,1718261447934,-516.99338483,0.00018,2]
[329343727,1718261447945,-373.85654905,0.00018,2]
[329343728,1718261448157,-12683.33123876,0.00018,2]
[329343729,1718261448254,-496.36527315,0.00018,2]
[329343737,1718261459356,-500.0,0.00016438,2]
[329343738,1718261459368,-635.95,0.00016438,2]
[329343739,1718261459383,-510.20644159,0.00016438,2]
[329343740,1718261459399,-500.0,0.00016438,2]
[329343741,1718261459412,-635.95,0.00016712,2]
[329343742,1718261459423,-635.95,0.00016986,2]
[329343743,1718261459434,-635.95,0.0001726,2]
[329343744,1718261459445,-635.95,0.00017534,2]
[329343745,1718261459461,-635.95,0.00017808,2]
[329343746,1718261459477,-2491.03190565,0.000179,2]
[329343756,1718262165982,-1956.62171991,0.00028104,120]
[329343757,1718262166023,-653.0,0.00028104,120]
[329343758,1718262166058,-848.30342301,0.00028104,120]
[329343759,1718262166090,-988.35006569,0.00028104,120]
[329343760,1718262166125,-894.59306564,0.00028104,120]
[329343761,1718262166159,-860.73807853,0.00028104,120]
[329343762,1718262166191,-2000.0,0.00028104,120]
[329343763,1718262166252,-1017.28565618,0.00028104,120]
[329343764,1718262166294,-2699.63297734,0.00028104,90]
[329343765,1718262166338,-998.83147927,0.00028104,120]
[329343766,1718262166376,-8111.76932712,0.00028104,120]
[329343767,1718262166409,-2000.0,0.00028104,60]
[329343768,1718262166438,-10131.98640593,0.00028104,120]
[329343769,1718262166475,-417214.27925713,0.00028104,120]
[329343770,1718262166512,-315228.39338308,0.00028104,120]
[329343771,1718262166569,-38681.65761219,0.00028104,120]
[329343772,1718262166611,-195714.55754898,0.00028104,120]
[329343773,1718262170313,-85469.54953444,0.00028104,120]
[329343774,1718262170349,-5000.0,0.00028104,120]
[329343775,1718262170385,-1000.51568008,0.00028104,120]
[329343776,1718262170439,-150000.0,0.00028104,45]
[329343777,1718262170473,-5000.0,0.00028104,120]
[329343778,1718262170513,-5000.0,0.00028104,120]
[329343779,1718262170547,-836.0,0.00028104,120]
[329343780,1718262170588,-13145.0,0.00028104,45]
[329343787,1718262608791,-222.7182937,0.0001555,2]
[329343788,1718262608836,-7.83084272,0.00016436,2]
[329343789,1718262608894,-230.54913642,0.00016436,2]
[329343889,1718262640755,-173.26917419,0.00016436,2]
[329343890,1718262640771,-1101.09253186,0.00016437,2]
[329343891,1718262640793,-500.0,0.00016438,2]
[329343892,1718262640815,-500.0,0.00016438,2]
[329343893,1718262640826,-500.0,0.00016438,2]
[329343894,1718262640839,-509.48,0.00016438,2]
[329343895,1718262640865,-500.0,0.00016438,2]
[329343896,1718262640879,-500.0,0.00016438,2]
[329343897,1718262640898,-506.00312257,0.00016438,2]
[329343898,1718262640945,-503.83600062,0.00016438,2]
[329343899,1718262640963,-500.0,0.00016438,2]
[329343900,1718262640981,-500.0,0.00016438,2]
[329343901,1718262640992,-504.69551856,0.00016438,2]
[329343902,1718262641004,-506.72153558,0.00016438,2]
[329343903,1718262641017,-500.0,0.00016438,2]
[329343904,1718262641064,-500.0,0.00016438,2]
[329343905,1718262641086,-504.08074831,0.00016438,2]
[329343906,1718262641105,-500.0,0.00016438,2]
[329343907,1718262641117,-500.0,0.00016438,2]
[329343908,1718262641139,-507.21499543,0.00016438,2]
[329343909,1718262641150,-500.0,0.00016438,2]
[329343910,1718262641161,-500.0,0.00016438,2]
[329343911,1718262641172,-500.0,0.00016438,2]
[329343912,1718262641189,-505.74536094,0.00016438,2]
[329343913,1718262641213,-509.99685304,0.00016438,2]
[329343914,1718262641226,-635.65099795,0.00016438,2]
[329343915,1718262641249,-307.13795702,0.00016438,2]
[329343916,1718262641261,-501.42463611,0.00016438,2]
[329343917,1718262641276,-437.22455832,0.00016438,2]
[329343918,1718262641287,-380.47919137,0.00016438,2]
[329343919,1718262641303,-500.0,0.00016438,2]
[329343920,1718262641315,-500.0,0.00016438,2]
[329343921,1718262641372,-500.0,0.00016438,2]
[329343922,1718262641385,-503.28518433,0.00016438,2]
[329343923,1718262641395,-588.00194167,0.00016438,2]
[329343924,1718262641410,-522.68054097,0.00016438,2]
[329343925,1718262641423,-491.23478438,0.00016438,2]
[329343927,1718262641445,-500.0,0.00016438,2]
[329343928,1718262641474,-500.0,0.00016438,2]
[329343929,1718262641489,-504.0,0.00016438,2]
[329343930,1718262641517,-500.0,0.00016438,2]
[329343931,1718262641536,-519.48688427,0.00016438,2]
[329343932,1718262641562,-500.0,0.00016438,2]
[329343933,1718262641591,-500.0,0.00016438,2]
[329343934,1718262641603,-500.0,0.00016438,2]
[329343935,1718262641618,-514.61310399,0.00016438,2]
[329343936,1718262641640,-500.0,0.00016438,2]
[329343937,1718262641660,-500.0,0.00016438,2]
[329343938,1718262641692,-500.0,0.00016438,2]
[329343939,1718262641728,-504.91498093,0.00016438,2]
[329343940,1718262641749,-154.50286462,0.00016438,2]
[329343941,1718262641766,-491.07100688,0.00016438,2]
[329343942,1718262641777,-506.51476653,0.00016438,2]
[329343943,1718262641801,-500.0,0.00016438,2]
[329343944,1718262641813,-500.0,0.00016438,2]
[329343945,1718262641829,-502.64235201,0.00016438,2]
[329343946,1718262641855,-507.61123338,0.00016438,2]
[329343947,1718262641870,-399.82617197,0.00016438,2]
[329343948,1718262641884,-507.18427698,0.00016438,2]
[329343949,1718262641900,-500.0,0.00016438,2]
[329343950,1718262641911,-540.52536574,0.00016438,2]
[329343951,1718262641927,-500.0,0.00016438,2]
[329343952,1718262641937,-500.0,0.00016438,2]
[329343953,1718262641951,-470.72916787,0.00016438,2]
[329343954,1718262641964,-500.0,0.00016438,2]
[329343955,1718262641983,-500.0,0.00016438,2]
[329343956,1718262642002,-175.78644244,0.00016438,2]
[329343957,1718262642045,-500.0,0.00016438,2]
[329343958,1718262642056,-500.0,0.00016438,2]
[329343959,1718262642087,-500.0,0.00016438,2]
[329343960,1718262642118,-500.0,0.00016438,2]
[329343961,1718262642131,-500.0,0.00016438,2]
[329343962,1718262642162,-500.0,0.00016438,2]
[329343963,1718262642190,-511.77075717,0.00016438,2]
[329343964,1718262642221,-500.0,0.00016438,2]
[329343965,1718262642238,-500.0,0.00016438,2]
[329343966,1718262642268,-500.0,0.00016438,2]
[329343967,1718262642285,-510.09078915,0.00016438,2]
[329343968,1718262642450,-512.60659034,0.00016438,2]
[329343969,1718262642462,-500.0,0.00016438,2]
[329343970,1718262642484,-500.0,0.00016438,2]
[329343971,1718262642516,-500.0,0.00016438,2]
[329343972,1718262642531,-506.49452251,0.00016438,2]
[329343973,1718262642552,-500.0,0.00016438,2]
[329343974,1718262642565,-500.0,0.00016438,2]
[329343975,1718262642598,-500.0,0.00016438,2]
[329343976,1718262642628,-500.0,0.00016438,2]
[329343977,1718262642644,-561.66272529,0.00016438,2]
[329343978,1718262642657,-500.0,0.00016438,2]
[329343979,1718262642673,-513.64625544,0.00016438,2]
[329343980,1718262642714,-157.46930047,0.00016438,2]
[329343981,1718262642735,-500.0,0.00016438,2]
[329343982,1718262642751,-500.0,0.00016438,2]
[329343983,1718262642804,-500.0,0.00016438,2]
[329343984,1718262642816,-500.0,0.00016438,2]
[329343985,1718262642835,-500.0,0.00016438,2]
[329343986,1718262642856,-500.0,0.00016438,2]
[329343987,1718262642868,-506.06033898,0.00016438,2]
[329343988,1718262642881,-500.0,0.00016438,2]
[329343989,1718262642895,-500.0,0.00016438,2]
[329343990,1718262642915,-500.0,0.00016438,2]
[329343991,1718262642934,-157.10478909,0.00016438,2]
[329343992,1718262642952,-418.643906,0.00016438,2]
[329343993,1718262642966,-500.0,0.00016438,2]
[329343994,1718262642987,-500.0,0.00016438,2]
[329343995,1718262643003,-500.0,0.00016438,2]
[329343996,1718262643015,-500.0,0.00016438,2]
[329343997,1718262643064,-500.0,0.00016438,2]
[329343998,1718262643088,-500.0,0.00016438,2]
[329343999,1718262643100,-500.0,0.00016438,2]
[329344000,1718262643117,-500.0,0.00016438,2]
[329344001,1718262643131,-500.0,0.00016438,2]
[329344002,1718262643151,-500.0,0.00016438,2]
[329344003,1718262643173,-500.0,0.00016438,2]
[329344004,1718262643196,-500.0,0.00016438,2]
[329344005,1718262643222,-1128.07,0.00016438,2]
[329344006,1718262643235,-506.77499244,0.00016438,2]
[329344007,1718262643287,-500.0,0.00016438,2]
[329344008,1718262643309,-500.0,0.00016438,2]
[329344009,1718262643325,-500.0,0.00016438,2]
[329344010,1718262643354,-500.0,0.00016438,2]
[329344011,1718262643400,-500.0,0.00016438,2]
[329344012,1718262643421,-500.0,0.00016438,2]
[329344013,1718262643432,-500.0,0.00016438,2]
[329344014,1718262643447,-500.0,0.00016438,2]
[329344015,1718262643478,-500.0,0.00016438,2]
[329344016,1718262643504,-500.0,0.00016438,2]
[329344017,1718262643516,-500.0,0.00016438,2]
[329344018,1718262643553,-500.0,0.00016438,2]
[329344019,1718262643574,-500.0,0.00016438,2]
[329344020,1718262643592,-500.0,0.00016438,2]
[329344021,1718262643611,-500.0,0.00016438,2]
[329344022,1718262643625,-500.0,0.00016438,2]
[329344023,1718262643652,-628.4215999,0.00016438,2]
[329344024,1718262643664,-500.0,0.00016438,2]
[329344025,1718262643688,-500.0,0.00016438,2]
[329344026,1718262643726,-500.0,0.00016438,2]
[329344027,1718262643744,-500.0,0.00016438,2]
[329344028,1718262643764,-500.0,0.00016438,2]
[329344029,1718262643788,-500.0,0.00016438,2]
[329344030,1718262643814,-500.0,0.00016438,2]
[329344031,1718262643854,-500.0,0.00016438,2]
[329344032,1718262643871,-542.82332334,0.00016438,2]
[329344033,1718262643904,-500.0,0.00016438,2]
[329344034,1718262643924,-500.0,0.00016438,2]
[329344035,1718262643939,-504.66594726,0.00016438,2]
[329344036,1718262643964,-522.44793619,0.00016438,2]
[329344037,1718262643987,-500.0,0.00016438,2]
[329344039,1718262644004,-502.2113746,0.00016438,2]
[329344042,1718262644024,-500.0,0.00016438,2]
[329344046,1718262644063,-502.59641116,0.00016438,2]
[329344049,1718262644077,-500.0,0.00016438,2]
[329344051,1718262644090,-500.0,0.00016438,2]
[329344054,1718262644114,-522.21160075,0.00016438,2]
[329344056,1718262644126,-500.0,0.00016438,2]
[329344059,1718262644141,-500.0,0.00016438,2]
[329344061,1718262644154,-500.0,0.00016438,2]
[329344064,1718262644167,-500.0,0.00016438,2]
[329344066,1718262644184,-500.0,0.00016438,2]
[329344069,1718262644196,-500.0,0.00016438,2]
[329344071,1718262644211,-500.0,0.00016438,2]
[329344073,1718262644234,-500.0,0.00016438,2]
[329344075,1718262644255,-500.0,0.00016438,2]
[329344077,1718262644268,-500.0,0.00016438,2]
[329344079,1718262644288,-505.94865781,0.00016438,2]
[329344080,1718262644300,-371.94175252,0.00016438,2]
[329344083,1718262644328,-501.44520153,0.00016438,2]
[329344085,1718262644359,-500.0,0.00016438,2]
[329344089,1718262644396,-500.0,0.00016438,2]
[329344092,1718262644435,-500.0,0.00016438,2]
[329344094,1718262644461,-263.96179089,0.00016438,2]
[329344095,1718262644485,-500.0,0.00016438,2]
[329344097,1718262644503,-500.0,0.00016438,2]
[329344100,1718262644541,-500.0,0.00016438,2]
[329344101,1718262644565,-500.0,0.00016438,2]
[329344103,1718262644576,-500.0,0.00016438,2]
[329344105,1718262644604,-500.0,0.00016438,2]
[329344108,1718262644649,-594.01960601,0.00016438,2]
[329344111,1718262644684,-523.41156747,0.00016438,2]
[329344113,1718262644696,-500.0,0.00016438,2]
[329344115,1718262644715,-500.0,0.00016438,2]
[329344119,1718262644728,-500.0,0.00016438,2]
[329344120,1718262644739,-500.0,0.00016438,2]
[329344123,1718262644763,-500.0,0.00016438,2]
[329344125,1718262644783,-500.0,0.00016438,2]
[329344127,1718262644801,-500.0,0.00016438,2]
[329344129,1718262644813,-500.0,0.00016438,2]
[329344131,1718262644824,-500.0,0.00016438,2]
[329344133,1718262644838,-500.0,0.00016438,2]
[329344136,1718262644866,-500.0,0.00016438,2]
[329344138,1718262644880,-507.81662598,0.00016438,2]
[329344141,1718262644913,-500.0,0.00016438,2]
[329344142,1718262644930,-507.17963373,0.00016438,2]
[329344144,1718262644951,-512.19234643,0.00016438,2]
[329344145,1718262644962,-500.0,0.00016438,2]
[329344146,1718262644978,-500.0,0.00016438,2]
[329344147,1718262644993,-517.16394058,0.00016438,2]
[329344148,1718262645013,-500.0,0.00016438,2]
[329344149,1718262645046,-500.0,0.00016438,2]
[329344150,1718262645065,-500.0,0.00016438,2]
[329344151,1718262645080,-500.0,0.00016438,2]
[329344152,1718262645104,-500.0,0.00016438,2]
[329344153,1718262645125,-500.0,0.00016438,2]
[329344154,1718262645137,-547.48826989,0.00016438,2]
[329344155,1718262645148,-500.0,0.00016438,2]
[329344156,1718262645159,-500.0,0.00016438,2]
[329344157,1718262645177,-532.16776344,0.00016438,2]
[329344158,1718262645189,-500.0,0.00016438,2]
[329344159,1718262645214,-169.73002723,0.00016438,2]
[329344160,1718262645233,-500.0,0.00016438,2]
[329344161,1718262645244,-500.0,0.00016438,2]
[329344162,1718262645255,-500.0,0.00016438,2]
[329344163,1718262645266,-500.0,0.00016438,2]
[329344164,1718262645278,-500.0,0.00016438,2]
[329344165,1718262645290,-500.0,0.00016438,2]
[329344166,1718262645306,-505.00349557,0.00016438,2]
[329344167,1718262645328,-500.0,0.00016438,2]
[329344168,1718262645352,-536.61915141,0.00016438,2]
[329344169,1718262645383,-506.70488305,0.00016438,2]
[329344171,1718262645408,-500.0,0.00016438,2]
[329344173,1718262645452,-500.0,0.00016438,2]
[329344174,1718262645495,-228.95400368,0.00016438,2]
[329344175,1718262645512,-953.24,0.00016438,2]
[329344176,1718262645536,-500.0,0.00016438,2]
[329344177,1718262645551,-500.0,0.00016438,2]
[329344178,1718262645562,-500.0,0.00016438,2]
[329344179,1718262645574,-611.42503127,0.00016438,2]
[329344180,1718262645588,-500.0,0.00016438,2]
[329344181,1718262645606,-500.0,0.00016438,2]
[329344182,1718262645618,-500.0,0.00016438,2]
[329344183,1718262645629,-500.0,0.00016438,2]
[329344184,1718262645645,-500.0,0.00016438,2]
[329344185,1718262645656,-500.0,0.00016438,2]
[329344186,1718262645708,-500.0,0.00016438,2]
[329344187,1718262645732,-514.1853047,0.00016438,2]
[329344188,1718262645752,-506.79265098,0.00016438,2]
[329344189,1718262645763,-500.0,0.00016438,2]
[329344190,1718262645775,-500.0,0.00016438,2]
[329344191,1718262645787,-500.0,0.00016438,2]
[329344192,1718262645797,-500.0,0.00016438,2]
[329344193,1718262645818,-500.0,0.00016438,2]
[329344194,1718262645829,-500.0,0.00016438,2]
[329344195,1718262645839,-500.0,0.00016438,2]
[329344196,1718262645851,-500.0,0.00016438,2]
[329344197,1718262645863,-748.17,0.00016438,2]
[329344198,1718262645879,-748.17,0.00016438,2]
[329344199,1718262645889,-815.31,0.00016438,2]
[329344200,1718262645901,-500.0,0.00016438,2]
[329344201,1718262645913,-500.0,0.00016438,2]
[329344202,1718262645924,-513.38575253,0.00016438,2]
[329344203,1718262645935,-593.26989627,0.00016438,2]
[329344204,1718262645947,-500.0,0.00016438,2]
[329344205,1718262645957,-500.0,0.00016438,2]
[329344206,1718262645970,-500.0,0.00016438,2]
[329344207,1718262645982,-500.0,0.00016438,2]
[329344208,1718262645994,-500.0,0.00016438,2]
[329344209,1718262646007,-500.0,0.00016438,2]
[329344210,1718262646036,-500.0,0.00016438,2]
[329344211,1718262646054,-542.81810895,0.00016438,2]
[329344212,1718262646080,-500.0,0.00016438,2]
[329344213,1718262646091,-502.28606211,0.00016438,2]
[329344214,1718262646101,-542.89910287,0.00016438,2]
[329344215,1718262646112,-517.455171,0.00016438,2]
[329344216,1718262646123,-507.81796892,0.00016438,2]
[329344217,1718262646134,-500.0,0.00016438,2]
[329344218,1718262646145,-500.0,0.00016438,2]
[329344219,1718262646156,-508.83219601,0.00016438,2]
[329344220,1718262646167,-500.0,0.00016438,2]
[329344221,1718262646177,-405.42921224,0.00016438,2]
[329344222,1718262646188,-500.0,0.00016438,2]
[329344223,1718262646198,-520.42206899,0.00016438,2]
[329344224,1718262646209,-500.0,0.00016438,2]
[329344225,1718262646220,-500.0,0.00016438,2]
[329344226,1718262646232,-704.15,0.00016438,2]
[329344227,1718262646243,-500.0,0.00016438,2]
[329344228,1718262646254,-500.0,0.00016438,2]
[329344229,1718262646265,-504.00034184,0.00016438,2]
[329344230,1718262646277,-500.0,0.00016438,2]
[329344231,1718262646287,-500.0,0.00016438,2]
[329344232,1718262646306,-500.0,0.00016438,2]
[329344233,1718262646317,-500.0,0.00016438,2]
[329344234,1718262646329,-500.0,0.00016438,2]
[329344235,1718262646342,-500.0,0.00016438,2]
[329344236,1718262646354,-500.0,0.00016438,2]
[329344237,1718262646366,-500.0,0.00016438,2]
[329344238,1718262646377,-515.12563617,0.00016438,2]
[329344239,1718262646388,-419.98850811,0.00016438,2]
[329344240,1718262646408,-513.19058102,0.00016438,2]
[329344241,1718262646426,-500.0,0.00016438,2]
[329344242,1718262646446,-511.34,0.00016438,2]
[329344243,1718262646468,-500.0,0.00016438,2]
[329344244,1718262646479,-500.0,0.00016438,2]
[329344245,1718262646490,-500.0,0.00016438,2]
[329344246,1718262646504,-500.0,0.00016438,2]
[329344247,1718262646522,-500.0,0.00016438,2]
[329344248,1718262646543,-500.0,0.00016438,2]
[329344249,1718262646556,-500.0,0.00016438,2]
[329344250,1718262646571,-500.0,0.00016438,2]
[329344251,1718262646581,-500.0,0.00016438,2]
[329344252,1718262646592,-500.0,0.00016438,2]
[329344253,1718262646606,-2713.38,0.00016438,2]
[329344254,1718262646621,-500.0,0.00016438,2]
[329344255,1718262646634,-500.0,0.00016438,2]
[329344256,1718262646664,-500.0,0.00016438,2]
[329344257,1718262646675,-500.0,0.00016438,2]
[329344258,1718262646693,-500.0,0.00016438,2]
[329344259,1718262646707,-500.0,0.00016438,2]
[329344260,1718262646727,-503.20765984,0.00016438,2]
[329344261,1718262646760,-500.0,0.00016438,2]
[329344262,1718262646776,-806.8,0.00016438,2]
[329344263,1718262646789,-500.0,0.00016438,2]
[329344264,1718262646820,-500.0,0.00016438,2]
[329344265,1718262646836,-500.0,0.00016438,2]
[329344266,1718262646847,-500.0,0.00016438,2]
[329344267,1718262646859,-500.0,0.00016438,2]
[329344268,1718262646872,-500.0,0.00016438,2]
[329344269,1718262646891,-500.0,0.00016438,2]
[329344270,1718262646911,-500.0,0.00016438,2]
[329344271,1718262646931,-557.1255783,0.00016438,2]
[329344272,1718262646956,-500.0,0.00016438,2]
[329344273,1718262646972,-500.0,0.00016438,2]
[329344274,1718262646986,-986.54,0.00016438,2]
[329344275,1718262646998,-519.01929498,0.00016438,2]
[329344276,1718262647010,-1287.8,0.00016438,2]
[329344277,1718262647043,-500.0,0.00016438,2]
[329344278,1718262647059,-500.0,0.00016438,2]
[329344279,1718262647071,-500.0,0.00016438,2]
[329344280,1718262647084,-1449.62517231,0.00016612,2]
[329344281,1718262647112,-500.0,0.00016711,2]
[329344282,1718262647124,-748.17,0.00016711,2]
[329344283,1718262647136,-748.17,0.00016711,2]
[329344284,1718262647155,-500.0,0.00016711,2]
[329344285,1718262647186,-500.0,0.00016711,2]
[329344286,1718262647199,-500.0,0.00016711,2]
[329344287,1718262647218,-500.0,0.00016712,2]
[329344288,1718262647234,-500.0,0.00016712,2]
[329344289,1718262647247,-502.23828221,0.00016712,2]
[329344290,1718262647259,-500.0,0.00016712,2]
[329344291,1718262647269,-500.0,0.00016712,2]
[329344292,1718262647283,-500.0,0.00016712,2]
[329344293,1718262647297,-546.95702561,0.00016712,2]
[329344294,1718262647310,-500.0,0.00016712,2]
[329344295,1718262647333,-500.0,0.00016712,2]
[329344296,1718262647345,-500.0,0.00016712,2]
[329344297,1718262647357,-500.0,0.00016712,2]
[329344298,1718262647369,-509.1047877,0.00016712,2]